Cogmind - Beta 11 @@@ ROGUE MODE // 2022.03.18 @ 14:26:08 Player: Midas Result: Destroyed by G-34 Mercenary with Small Laser Performance ------------- Evolutions (1) 500 Regions Visited (3) 600 Robots Destroyed (11) 55 Value Destroyed (363) 363 Prototype IDs (1) 20 Alien Tech Used (0) 0 Bonus (0) 0 TOTAL SCORE: 1538 Bonus ------- None Cogmind --------- Core Integrity 0/400 Matter 300/300 Energy 100/100 System Corruption 0% Temperature Cool (12) Movement Core (150) Ox2 Location -9/Materials Parts ------- > --- POWER (1) -------- (None) > --- PROPULSION (3) --- (None) > --- UTILITY (3) ------ Small Storage Unit > --- WEAPON (2) ------- Spread Laser > --- INVENTORY (8) ---- Ion Engine Aluminum Leg Compact Wheel Flight Unit Improved Flight Unit Small Laser Peak State ------------ > --- POWER ------------ Ion Engine > --- PROPULSION ------- Light Treads Light Treads Aluminum Leg > --- UTILITY ---------- Small Storage Unit Medium Armor Plating > --- WEAPON ----------- EM Pulse Gun Light Assault Rifle > --- INVENTORY -------- Ion Engine Aluminum Leg Compact Wheel Flight Unit Improved Flight Unit Small Laser Spread Laser [Rating: 10] Favorites ----------- Power Ion Engine Engine Ion Engine Propulsion Aluminum Leg Treads Light Treads Leg Aluminum Leg Flight Unit Flight Unit Utility Small Storage Unit Storage Small Storage Unit Protection Medium Armor Plating Weapon Light Assault Rifle Energy Gun Small Laser Ballistic Gun Light Assault Rifle Build | -11 -10 -10 -9 ------- Run | Scr Mat Min Mat Slots Evolved 2 | . . . 2 Power . | . . . . Propulsion 1 | . . . 1 Utility 1 | . . . 1 Weapon . | . . . . Parts Attached 17 | . . 6 11 Power 1 | . . . 1 Engine 1 | . . . 1 Core . | . . . . Reactor . | . . . . Propulsion 13 | . . 6 7 Treads 2 | . . . 2 Leg 5 | . . 3 2 Wheel . | . . . . Hover . | . . . . Flight 6 | . . 3 3 Utility 1 | . . . 1 Device . | . . . . Storage . | . . . . Processor . | . . . . Hackware . | . . . . Protection 1 | . . . 1 Artifact . | . . . . Weapon 2 | . . . 2 Energy Gun 2 | . . . 2 Energy Cannon . | . . . . Ballistic Gun . | . . . . Ballistic Cannon . | . . . . Launcher . | . . . . Special Weapon . | . . . . Impact Weapon . | . . . . Slashing Weapon . | . . . . Piercing Weapon . | . . . . Special Melee Weapon . | . . . . Unidentified Prototypes 1 | . . . 1 Parts Lost 9 | . . . 9 Power 1 | . . . 1 Propulsion 5 | . . . 5 Utility 1 | . . . 1 Weapon 2 | . . . 2 Highest Loss Streak 8 | . . . 8 To Critical Strikes . | . . . . Average Slot Usage (%) 72 | . 85 84 62 Engine 10 | . 14 14 7 Treads 4 | . . . 7 Leg 15 | . 28 26 7 Flight 3 | . . . 6 Storage 12 | . 14 14 11 Protection 1 | . . . 2 Energy Gun 12 | . 14 14 10 Ballistic Gun 10 | . 14 14 8 Naked Turns . | . . . . Heaviest Build 20 | 12 12 12 20 Greatest Support 40 | 20 20 20 40 Greatest Overweight (x) 2 | . . 2 2 Average Overweight (x) . | . . . . Largest Inventory Capacity 8 | 8 8 8 8 Average Capacity 8 | 8 8 8 8 Most Carried 8 | 6 6 8 8 Average Carried 7 | 6 6 7 7 Final Capacity 8 | 8 8 8 8 Final Carried 8 | 6 6 8 6 Class Distribution -------------------- 100% | Mutant Dominant Class ---------------- Mutant | -10/Materials Mutant | -10/Mines Mutant | -9/Materials Resources | -11 -10 -10 -9 ----------- Run | Scr Mat Min Mat Matter Collected 374 | 200 . 71 103 Remotely . | . . . . Salvage Created 381 | . . 81 300 Parts 27 | . . 7 20 Haulers Intercepted . | . . . . Recyclers Shooed . | . . . . Parts Field Recycled . | . . . . Retrieved Matter . | . . . . Parts Self-Destructed . | . . . . Prevented . | . . . . Kills | -11 -10 -10 -9 ------- Run | Scr Mat Min Mat Combat Hostiles Destroyed 11 | . . 4 7 Guns 11 | . . 4 7 Classes Destroyed 3 | . . 2 1 Swarmer 3 | . . 3 . Grunt 6 | . . 1 5 Sentry 2 | . . . 2 Best Kill Streak 4 | . . 3 4 Combat Bots Only 4 | . . 3 4 Max Kills in Single Turn 1 | . . 1 1 Gunslinging . | . . . . Exploded . | . . . . Melee . | . . . . Uniques/NPCs Destroyed . | . . . . Combat | -11 -10 -10 -9 -------- Run | Scr Mat Min Mat Damage Taken 1587 | . . 147 1440 Core 428 | . . 24 404 Absorbed by Shields . | . . . . Core Remaining (%) 95 | 100 . 90 . Volleys Fired 48 | . . 11 37 Largest 2 | . . 2 2 Hottest 65 | . . 60 65 Shots Fired 79 | . . 22 57 Gun 79 | . . 22 57 Cannon . | . . . . Launcher . | . . . . Special . | . . . . Kinetic 34 | . . 11 23 Thermal 34 | . . 11 23 Explosive . | . . . . Electromagnetic 11 | . . . 11 Robot Hit Streak 10 | . . 5 10 Robot Miss Streak 6 | . . 3 6 Penetration Max . | . . . . Secondary Targets 2 | . . 1 1 Max Gunslinging Chain 1 | . . 1 1 Shots Hit Robots 54 | . . 12 42 Core Hits 37 | . . 7 30 Critical Kills . | . . . . Critical Parts Destroyed . | . . . . Critical Strikes . | . . . . Melee Attacks . | . . . . Impact . | . . . . Slashing . | . . . . Piercing . | . . . . Sneak Attacks . | . . . . Combat Hostiles . | . . . . Follow-up Attacks . | . . . . Damage Inflicted 582 | . . 111 471 Guns 582 | . . 111 471 Cannons . | . . . . Explosions . | . . . . Melee . | . . . . Ramming . | . . . . Kinetic 198 | . . 55 143 Thermal 315 | . . 56 259 Explosive . | . . . . Electromagnetic 69 | . . . 69 Impact . | . . . . Slashing . | . . . . Piercing . | . . . . Highest Corruption . | . . . . Average Corruption . | . . . . Corruption Purged . | . . . . Corruption Blocked . | . . . . Overload Shots . | . . . . Overflow Damage . | . . . . Projectiles . | . . . . Explosions . | . . . . Melee . | . . . . Knockbacks . | . . . . Impact . | . . . . Kinetic . | . . . . Secondary . | . . . . Self-Inflicted Damage . | . . . . Shots . | . . . . Rammed . | . . . . Targets Rammed . | . . . . Kicked . | . . . . Crushed . | . . . . Highest Temperature 259 | . . 76 259 Average Temperature 119 | . . 30 143 Received Heat Transfer 765 | . . 36 729 Effects 2 | . . . 2 Interference 2 | . . . 2 Siege Activations . | . . . . Robots Corrupted . | . . . . Combat Hostiles . | . . . . Parts Fried . | . . . . Impact Corruptions . | . . . . Robots Melted . | . . . . Combat Hostiles . | . . . . Parts Melted . | . . . . Heat Transferred 515 | . . 125 390 Parts Sabotaged . | . . . . Parts Stolen . | . . . . Parts Stripped . | . . . . Power Chain Reactions . | . . . . Missiles Intercepted . | . . . . Alert | -11 -10 -10 -9 ------- Run | Scr Mat Min Mat Peak Influence 219 | . . 115 219 Initial 44 | . . . 44 Average 89 | . . 53 126 Maximum Alert Level 1 | . . . 1 Low Security (%) 89 | 100 100 100 81 Level 1 10 | . . . 18 Level 2 . | . . . . Level 3 . | . . . . Level 4 . | . . . . Level 5 . | . . . . High Security . | . . . . Max Security . | . . . . Squads Dispatched 3 | . 1 . 2 Investigation . | . . . . Extermination . | . . . . Reinforcement 3 | . 1 . 2 Assault . | . . . . Garrison . | . . . . Intercept . | . . . . Searches Triggered . | . . . . Construction Impeded . | . . . . Haulers Reinforced . | . . . . Active Scanning Responses . | . . . . Cargo Convoy Interrupts . | . . . . Stealth | -11 -10 -10 -9 --------- Run | Scr Mat Min Mat Distress Signals 1 | . . . 1 Communications Jammed . | . . . . Distress Signals . | . . . . Times Spotted 25 | . 1 5 19 Peak Tracking Total 10 | . 2 3 10 Tactical Retreats . | . . . . Traps | -11 -10 -10 -9 ------- Run | Scr Mat Min Mat Traps Triggered . | . . . . Indirectly . | . . . . Trap Hack Attempts . | . . . . Triggered . | . . . . Disarmed . | . . . . Reprogrammed . | . . . . Reused . | . . . . Traps Extracted . | . . . . Installed . | . . . . Triggered . | . . . . Machines | -11 -10 -10 -9 ---------- Run | Scr Mat Min Mat Machines Disabled . | . . . . Max in Single Turn . | . . . . Machines Sabotaged . | . . . . Garrisons Compromised . | . . . . Overloaded Fab Kills . | . . . . Hacking | -11 -10 -10 -9 --------- Run | Scr Mat Min Mat Machines Accessed . | . . . . Terminals . | . . . . Fabricators . | . . . . Repair Stations . | . . . . Recycling Units . | . . . . Scanalyzers . | . . . . Garrison Access . | . . . . Total Hacks . | . . . . Successful . | . . . . Failed . | . . . . Catastrophic . | . . . . Database Lockouts . | . . . . Manual . | . . . . Terminals . | . . . . Fabricators . | . . . . Repair Stations . | . . . . Recycling Units . | . . . . Scanalyzers . | . . . . Garrison Access . | . . . . Terminal Hacks . | . . . . Fabricator Hacks . | . . . . Repair Station Hacks . | . . . . Recycling Unit Hacks . | . . . . Scanalyzer . | . . . . Garrison Access Hacks . | . . . . Unauthorized Hacks . | . . . . Terminals . | . . . . Fabricators . | . . . . Repair Stations . | . . . . Recycling Units . | . . . . Scanalyzers . | . . . . Garrison Access . | . . . . Data Cores Recovered . | . . . . Used . | . . . . Hacking Detections . | . . . . Full Trace Events . | . . . . Feedback Events . | . . . . Feedback Blocked . | . . . . Robot Schematics Acquired . | . . . . Robots Built . | . . . . Authchips . | . . . . Time . | . . . . Total Robot Build Rating . | . . . . Part Schematics Acquired . | . . . . Parts Built . | . . . . Authchips . | . . . . Time . | . . . . Total Part Build Rating . | . . . . Parts Repaired . | . . . . Time . | . . . . Parts Recycled . | . . . . Recycled Matter . | . . . . Retrieved Matter . | . . . . Retrieved Components . | . . . . Parts Scanalyzed . | . . . . Part Schematics Acquired . | . . . . Parts Damaged . | . . . . Bothacking | -11 -10 -10 -9 ------------ Run | Scr Mat Min Mat Used RIF Installer . | . . . . Robots Hacked . | . . . . Non-combat . | . . . . Combat . | . . . . Robot Hacks Applied . | . . . . Relay Couplers Released . | . . . . Fabnet Peak Effective % . | . . . . Robots Rewired . | . . . . Allies Hacked . | . . . . Hacks Repelled . | . . . . Allies | -11 -10 -10 -9 -------- Run | Scr Mat Min Mat Total Allies . | . . . . Largest Group . | . . . . Highest-Rated Group . | . . . . Highest-Rated Ally . | . . . . Total Orders . | . . . . Ally Attacks . | . . . . Total Damage . | . . . . Kills . | . . . . Allies Corrupted . | . . . . Allies Melted . | . . . . Intel | -11 -10 -10 -9 ------- Run | Scr Mat Min Mat Robot Analysis Total . | . . . . Derelict Logs Recovered . | . . . . Drone Launches . | . . . . Drone Recoveries . | . . . . Exploration | -11 -10 -10 -9 ------------- Run | Scr Mat Min Mat Turns Passed 454 | 2 32 168 252 Spaces Moved 327 | 2 27 106 192 Core 18 | . . . 18 Treads 3 | . . . 3 Legs 180 | 2 27 101 50 Wheels . | . . . . Hover . | . . . . Flight 126 | . . 5 121 Fastest Speed 34 | 120 120 117 34 Average Speed 93 | 120 120 120 74 Slowest Speed 200 | 120 120 200 160 Overloaded Moves . | . . . . Propulsion Burnouts . | . . . . Robots Hopped . | . . . . Cave-ins Triggered . | . . . . Exploration Rate (%) 15 | 1 9 27 24 Regions Visited 3 Branch Regions 1 Pre-discovered Areas . | . . . . Known Exits Taken . | . . . . Unknown Exits Taken 3 | 1 1 1 . Scrap Searched . | . . . . Spaces Dug . | . . . . Terrain Destroyed . | . . . . Melee . | . . . . Projectile . | . . . . AOE . | . . . . Terrain Rammed . | . . . . Walls Destroyed . | . . . . Machines Disabled . | . . . . Actions | -11 -10 -10 -9 --------- Run | Scr Mat Min Mat Total 398 | 1 26 126 245 Wait . | . . . . Move 324 | 1 26 105 192 Hop . | . . . . Pick Up 3 | . . . 3 Fast Attach 4 | . . 2 2 Attach 3 | . . . 3 Detach 2 | . . 2 . Swap 10 | . . 4 6 Drop 4 | . . 2 2 Fire 48 | . . 11 37 Melee . | . . . . Ram . | . . . . Kick . | . . . . Crush . | . . . . Escape Stasis . | . . . . Rewire . | . . . . Trap . | . . . . Miscellaneous . | . . . . Route ------- -11/Scrapyard -10/Materials -10/Mines -9/Materials (discovered 1 exit: [*Min]) History --------- Turn | Location | Event 1 | -11/Scrapyard | Discovered new exit (range 1) 3 | -11/Scrapyard | Entered Materials 15 | -10/Materials | Discovered new exit (range 16) 35 | -10/Materials | Entered Mines 192 | -10/Mines | Discovered new exit (range 3) 203 | -10/Mines | Entered Materials 203 | -9/Materials | Evolved 2 slots: Propulsion x1, Utility x1 302 | -9/Materials | Build established: Mutant 393 | -9/Materials | Core integrity fell below 50% 435 | -9/Materials | Core integrity fell below 20% 454 | -9/Materials | Discovered new exit (range 12) 455 | -9/Materials | Destroyed by G-34 Mercenary with Small Laser Last Messages --------------- 00396_ Critical hit (Burn: +37). 00396_ K-01 Serf collects debris. 00396_ Acquired 28 matter. 00399_ Acquired Aluminum Leg. 00400_ Acquired 10 matter. 00403_ K-01 Serf collects debris. 00414_ G-47 Trooper destroyed. 00416_ Aluminum Leg destroyed. 00418_ K-01 Serf destroyed. 00422_ Lgt. Treads destroyed. 00423_ Y-45 Defender destroyed. 00429_ Aluminum Leg destroyed. 00438_ Critical hit (Burn: +37). 00441_ Processing Tank disabled. 00442_ R-06 Scavenger collects Sml. Laser. 00451_ K-01 Serf cleans the Processing Tank. 00451_ K-01 Serf cleans the Terminal. 00454_ EXIT=FOUND 00455_ C-30 ARC bursts open, deploying its payload. 00455_ S-10 Pest unfolds itself. Map ----- +----------------------------------------------------+ | ??????????# ?????????? | | ??????????# ?????????? | | ??????????# ] ??????????? | | ??????????# ###+### ####### #??????????? | | ??????????### ####%===## ########??????????????? | | ????????????# ???#[%*%## # #??????????????? | | ????????????# ???#!!!!## # #??????????????? | | ????????????# ???#/%==## / #??????????????? | | ????????????# ???# =!=## # #??????????????? | | ????????????#+???# = ## # #??????????????? | | ?????????????????# *![## # #??????????????? | | ?????????????????###/### ########??????????????? | | ???????????????????#%% #?????????????????????? | | ???????????????????# u#?????????????????????? | | ???????????????????# """ #?????????????????????? | | ???????????????????# """ #?????????????????????? | | ??????????????###### """ #?????????????????????? | | ??????????????# "" #?????????????????????? | | ??????????????# """ #?????????????????????? | | ??????????????# #????#????????????????? | | ??????????????###### Y gg #??? #???? #??????????? | | ???????????????????# """g ###u#### #??????????? | | ??????????????????## """ g g #??????????? | | ??????????????????#" """ +??????????? | | ??????????????????#T """ o #??????????? | | ??????????????????#" """@ ###+####+##??????????? | | ??????????????????##ksk #??? ???????????????? | | ???????????????? % s +???? ??????????????? | | ????????????? < s #????????????????????? | | ????????????? #????????????????????? | | ?????????????? # "" #????????????????????? | | ??????????????###?# "T #????????????????????? | | ????????????????? "" +????????????????????? | | ????????????????# #????????????????????? | | ????????????????k #????????????????????? | | ??????????????? # ??####+##????????????????????? | | ??????????????"?# ???????????????????????????????? | | ????????????????#????????????????????????????????? | | ?????????????????????????????????????????????????? | | ?????????????????????????????????????????????????? | | ?????????????????????????????????????????????????? | | ?????????????????????????????????????????????????? | | ?????????????????????????????????????????????????? | | ?????????????????????????????????????????????????? | | ?????????????????????????????????????????????????? | | ?????????????????????????????????????????????????? | | ?????????????????????????????????????????????????? | | ?????????????????????????????????????????????????? | | ?????????????????????????????????????????????????? | | ?????????????????????????????????????????????????? | +----------------------------------------------------+ Best States ------------- Heat Dissipation 28 Energy Generation 10 Energy Capacity 250 Matter Stores 300 Matter Capacity 300 Sight Range 16 Terrain Scan Density 10 Armor Coverage 225 Evasion (%) 63 Recoil Reduction 2 Item Schematics ----------------- None Robot Schematics ------------------ None Fabricated ------------ Nothing Alien Tech Used ----------------- None Achievements -------------- None Challenges ------------ None Game ------ Seed TerrainAssemblyCompressor Manual? 0 Play Time 00:08:05 Cumulative 25.2 hours Start 2022.03.18 @ 12:15:14 End 2022.03.18 @ 14:26:08 Sessions 3 Manual Loads 0 Difficulty Rogue Special Mode None Game No. 42 Rogue 27 Adventurer 15 Explorer 0 Win Type - Total 0 Types 0/0/0/0/0/0/0/0/0 Lore% 17 Gallery% 26 Achievement% 19 Wizard Run 0 Options --------- ASCII 0 Keyboard 0 Movement Arrows Keybinds 0 Fullscreen 0 Font 20/SmallcapsGlow Map View 113x50 Tactical HUD 1 Map Filters NONE Filters NONE Steam 1 RUN: ef8eb027-343f-4d96-b7cf-99304d33853c